[Event "Oceania Zonal Open 2023"]
[Site "Melbourne"]
[Date "2023.01.24"]
[Round "2.10"]
[White "Jothibabu, Anandaram"]
[Black "Croad, Nicolas"]
[Result "1/2-1/2"]
[ECO "A13"]
[WhiteElo "1807"]
[BlackElo "2218"]
[Annotator "TA"]
[PlyCount "148"]
[EventDate "2023.01.09"]
[EventType "swiss"]
[EventCountry "AUS"]
[SourceTitle "playchess.com"]
[Source "ChessBase"]
[SourceQuality "1"]
[TimeControl "5400+30"]

{[%evp 9,148,5,4,-22,30,-31,44,-18,-11,-17,-19,-58,12,-8,16,-60,-31,-145,-147,-147,-145,-129,-142,-142,-117,-112,-38,-95,-72,-72,-79,-65,-69,-72,-77,-69,-77,-80,-66,-65,-72,-69,-55,-75,-70,-52,-56,-39,-42,-55,-45,-112,-56,-110,-61,-76,-32,-57,-54,-174,0,0,0,0,0,0,0,0,0,0,0,-9,0,0,0,-43,-51,-155,-160,-127,-106,-225,-138,-116,-85,-770,-734,-834,-792,-618,-469,-742,-583,-302,0,0,0,-325,0,0,0,0,0,0,0,0,0,0,0,0,0,0,0,0,0,0,0,0,0,-27999,0,0,0,0,0,0,0,0,0,0,0,0,0,0,0,0,0,0,0,0,0]} 1. c4 {[%emt 0:00:03]} e6 {[%emt 0:00:08]} 2. g3 {[%emt 0:00:05]} d5 {[%emt 0:00:06]} 3. Bg2 {[%emt 0:00:04]} Nf6 {[%emt 0:00:15]} 4. Nf3 {[%emt 0:02:14]} d4 {[%emt 0:01:25]} 5. d3 {[%emt 0:00:06]} c5 {[%emt 0:01:39]} 6. Bg5 {[%emt 0:02:04] [#] A13: English Opening: 1...e6.} Nbd7 $146 {[%emt 0:07:00]} (6... h6 $142 7. Bxf6 Qxf6) ({Predecessor:} 6... Be7 7. O-O Nc6 8. Nbd2 h6 9. Bxf6 Bxf6 10. h3 g5 11. Nh2 Qc7 12. a3 a5 {0-1 Bores,M (2178)-Bargel,M (2180) CZE-chT2B 1617 2016 (9.4)}) 7. e4 {[%emt 0:03:08]} (7. e3 $11) 7... dxe3 {[%emt 0:02:00]} (7... e5 $15) 8. fxe3 {[%emt 0:00:42]} (8. Bxe3 $14 b6 9. Nfd2) 8... Be7 {[%emt 0:00:47]} 9. O-O {[%emt 0:00:07]} h6 {[%emt 0:04:56]} 10. Bf4 {[%emt 0:02:49]} O-O {[%emt 0:04:05]} (10... g5 $1 $15 11. Be5 g4) 11. Nc3 {[%emt 0:01:27]} (11. e4 $5) 11... Nh5 {[%emt 0:06:03]} (11... g5 $5) 12. Ne5 {[%emt 0:01:08]} (12. Be5 $11) 12... Nxf4 $15 {[%emt 0:00:32]} 13. exf4 {[%emt 0:00:29]} (13. gxf4 $15 Nxe5 14. fxe5) 13... Nxe5 $17 {[%emt 0:01:05][%mdl 64] Discovered Attack} 14. fxe5 {[%emt 0:00:08]} Qd4+ {[%emt 0:00:07]} 15. Kh1 {[%emt 0:02:41]} Qxe5 {[%emt 0:00:12]} 16. Qc2 {[%emt 0:01:11]} Rd8 {[%emt 0:04:56]} 17. Qf2 {[%emt 0:04:47]} f5 {[%emt 0:02:27]} (17... Rxd3 $2 18. Qxf7+ Kh8 19. Qe8+ Kh7 20. Be4+ $18) (17... Qf6 $17 {aiming for ...Qxf2.} 18. Qe2 Qd4) 18. Rfe1 {[%emt 0:05:19]} (18. Rae1 $15 Qf6 19. Nb5) 18... Qd4 {[%emt 0:04:15]} 19. Qxd4 {[%emt 0:00:46]} cxd4 {[%emt 0:03:24]} 20. Nd5 {[%emt 0:09:33]} Kf7 {[%emt 0:03:43][%cal Bg8f7,Bf7e7,Be7f6][%mdl 32]} ({But not} 20... exd5 21. Rxe7 dxc4 22. dxc4 $11) 21. Nxe7 {[%emt 0:01:57]} Kxe7 {[%emt 0:00:04]} 22. Re5 {[%emt 0:00:37]} Rb8 {[%emt 0:03:00]} 23. Rae1 {[%emt 0:01:25]} Kf6 {[%emt 0:00:49]} 24. b4 {[%emt 0:01:02]} Bd7 {[%emt 0:02:32]} 25. Kg1 {[%emt 0:00:49]} Re8 {[%emt 0:01:23]} 26. b5 {[%emt 0:04:57]} b6 {[%emt 0:01:23]} 27. a4 {[%emt 0:00:34]} Rbc8 {[%emt 0:02:02]} 28. Kf2 {[%emt 0:02:00]} g5 {[%emt 0:04:01]} 29. h3 {[%emt 0:01:15]} h5 {[%emt 0:02:27]} 30. h4 {[%emt 0:08:31]} (30. g4 $1 $15) 30... Rc7 {[%emt 0:06:58]} ({Better is} 30... g4 $1 $17) 31. Bf3 {[%emt 0:02:22]} (31. hxg5+ $15 Kxg5 32. Rh1) 31... gxh4 {[%emt 0:04:54]} ({Black should play} 31... g4 $17 32. Bg2 Re7) 32. gxh4 $15 {[%emt 0:00:04]} Bc8 {[%emt 0:00:41]} 33. R5e2 {[%emt 0:10:44]} Rg7 {[%emt 0:02:50]} 34. Rg1 {[%emt 0:01:27]} (34. Rc1 $15) 34... Reg8 $2 {[%emt 0:01:39]} (34... Rxg1 $19 35. Kxg1 e5) 35. Rxg7 $11 {[%emt 0:06:54]} Rxg7 {[%emt 0:00:05][%mdl 4096] Endgame KRB-KRB} 36. Rc2 {[%emt 0:00:28]} (36. c5 $5) 36... Bb7 {[%emt 0:02:41] And now ...Bxf3 would win.} 37. c5 {[%emt 0:03:23]} Bxf3 {[%emt 0:02:23]} 38. Kxf3 {[%emt 0:00:03]} bxc5 {[%emt 0:05:44]} 39. Rxc5 {[%emt 0:00:02] KR-KR} Rb7 {[%emt 0:00:21]} 40. Kf4 {[%emt 0:03:08]} Rg7 {[%emt 0:00:05] White must now prevent ...Rg2.} 41. Kf3 {[%emt 0:00:09] Prevents Rg2.} Re7 {[%emt 0:04:21]} 42. Rc6 {[%emt 0:00:34]} Ke5 {[%emt 0:00:23]} 43. Rc5+ {[%emt 0:00:39]} (43. Ra6 $15) 43... Kd6 $1 $17 {[%emt 0:00:18]} 44. Rc6+ {[%emt 0:00:07]} Kd5 $1 {[%emt 0:00:07] Hoping for ...e5.} 45. Kf4 {[%emt 0:06:26]} (45. Ke2 $17 {keeps fighting.}) 45... Rg7 {[%emt 0:01:10]} 46. Ra6 {[%emt 0:00:59]} Rf7 {[%emt 0:01:20]} 47. a5 $2 {[%emt 0:02:58][%mdl 8192]} (47. Ra5 $17 e5+ 48. Kg3 (48. Kg5 Kd6 $17)) 47... e5+ $1 $19 {[%emt 0:00:07][%cal Be6e5,Be5e4][%mdl 32]} 48. Kf3 {[%emt 0:00:05]} e4+ {[%emt 0:00:40]} 49. Ke2 {[%emt 0:01:43]} Rb7 {[%emt 0:01:27]} 50. b6 {[%emt 0:04:22]} (50. Rh6 $142 Rxb5 51. Rxh5 Rb2+ 52. Kd1) 50... axb6 {[%emt 0:00:05]} 51. axb6 {[%emt 0:00:06] [#]} Ke5 $2 {[%emt 0:04:45]} (51... e3 $1 $19 {...Kc6 would be deadly.} 52. Ra5+ Kc6 53. Rxf5 Rxb6 54. Rf6+ Kb5 55. Rf5+ Ka4) 52. Ra5+ $11 {[%emt 0:01:57]} Kf4 {[%emt 0:00:09]} 53. Rb5 {[%emt 0:00:55][%mdl 8192] [#]} (53. dxe4 $1 $11 fxe4 54. Rb5) 53... Kg4 $2 {[%emt 0:00:26]} (53... e3 $1 $19 54. Rb1 Kg3 55. Rg1+ Kxh4) 54. Rb4 {[%emt 0:00:50]} Kxh4 {[%emt 0:00:33]} 55. dxe4 {[%emt 0:01:21]} fxe4 {[%emt 0:01:06]} 56. Rxd4 {[%emt 0:00:32]} Rxb6 {[%emt 0:00:45]} 57. Rxe4+ {[%emt 0:00:06]} Kg3 {[%emt 0:00:03]} 58. Re3+ {[%emt 0:03:08]} Kg2 {[%emt 0:00:17]} 59. Re5 {[%emt 0:00:12]} Rb2+ {[%emt 0:00:46]} 60. Ke1 {[%emt 0:00:15]} h4 {[%emt 0:00:19]} 61. Rg5+ {[%emt 0:00:41]} Kf3 {[%emt 0:00:10]} 62. Rf5+ $1 {[%emt 0:00:22]} Kg4 {[%emt 0:03:32]} (62... Ke3 $5 63. Kf1 $8 Rh2 $11) 63. Rf8 {[%emt 0:00:03]} h3 {[%emt 0:00:21]} 64. Kf1 {[%emt 0:01:21]} Kg3 $2 {[%emt 0:00:32]} (64... Rb1+ 65. Ke2 h2 66. Rg8+ Kf5 67. Rf8+ Kg6 68. Rg8+ Kh7 69. Rg5 h1=Q 70. Kd3 Qf3+ 71. Kd4 Qf4+ 72. Kc5 Qxg5+ 73. Kd4 Qd2+ 74. Kc4 Rc1+ 75. Kb3 Rc3+ 76. Ka4 Qb2 77. Ka5 Ra3#) 65. Rg8+ {[%emt 0:00:22] The position is equal.} Kf3 {[%emt 0:00:21][%cal Rb2b1]} 66. Rf8+ {[%emt 0:01:17]} Kg3 {[%emt 0:00:06]} 67. Rg8+ {[%emt 0:00:05]} Kh2 {[%emt 0:00:04]} 68. Rg7 {[%emt 0:00:13]} Rg2 {[%emt 0:00:37]} 69. Rh7 {[%emt 0:00:44]} Rg8 {[%emt 0:00:35]} 70. Rf7 {[%emt 0:00:55]} Rg4 {[%emt 0:02:35]} 71. Kf2 {[%emt 0:00:40]} Rb4 {[%emt 0:00:49]} 72. Rf8 {[%emt 0:00:27]} Rb2+ {[%emt 0:00:39]} 73. Kf1 {[%emt 0:00:12]} Kg3 {[%emt 0:01:06] Strongly threatening ...Rb1+.} 74. Rg8+ {[%emt 0:00:16]} Kf3 {[%emt 0:00:05] Weighted Error Value: White=0.53/Black=0.33} 1/2-1/2

[Event "Oceania Zonal Open 2023"]
[Site "Melbourne"]
[Date "2023.01.24"]
[Round "2.11"]
[White "Jordan, William"]
[Black "Thomas, Brian"]
[Result "1/2-1/2"]
[ECO "C02"]
[WhiteElo "2181"]
[BlackElo "1798"]
[Annotator "TA"]
[PlyCount "69"]
[EventDate "2023.01.09"]
[EventType "swiss"]
[EventCountry "AUS"]
[SourceTitle "playchess.com"]
[Source "ChessBase"]
[SourceQuality "1"]
[TimeControl "5400+30"]

{[%evp 20,69,6,0,20,6,19,-15,16,0,36,-9,0,-15,-15,-26,11,0,19,0,0,-38,-37,-43,-21,-68,-13,-6,-15,-36,30,-9,-9,-260,-260,-290,-260,-289,-233,-225,-168,-168,0,0,0,0,0,0,0,0,0,0]} 1. e4 {[%emt 0:01:40]} e6 {[%emt 0:00:09]} 2. d4 {[%emt 0:01:05]} d5 {[%emt 0:00:10]} 3. e5 {[%emt 0:00:12]} c5 {[%emt 0:00:20]} 4. c3 {[%emt 0:00:05]} Nc6 {[%emt 0:00:13]} 5. Nf3 {[%emt 0:00:11]} Qb6 {[%emt 0:00:16]} 6. a3 {[%emt 0:00:08]} c4 {[%emt 0:00:45]} 7. Nbd2 {[%emt 0:01:07]} Na5 {[%emt 0:00:28]} 8. Be2 {[%emt 0:09:06]} Bd7 {[%emt 0:00:52]} 9. O-O {[%emt 0:03:22]} h6 {[%emt 0:02:05]} 10. Rb1 {[%emt 0:00:41]} Ne7 {[%emt 0:03:36][%cal Bg8e7,Be7f5,Bf5h4,Bh4f3][%mdl 32]} 11. Qc2 {[%emt 0:02:58]} Rc8 {[%emt 0:19:52] [#] C02: French: Advance Variation.} 12. Ne1 $146 {[%emt 0:15:05]} ({Predecessor:} 12. Bd1 Nf5 13. b3 cxb3 14. Nxb3 Ba4 15. Qa2 Nxb3 16. Bxb3 Bxb3 17. Rxb3 Qc7 18. Bd2 {½-½ Pulpan,M (1861)-Marinc,D (2016) Prague Summer op-B 2nd 2015 (9)}) 12... Nf5 {[%emt 0:12:46]} 13. g4 {[%emt 0:00:52]} (13. g3 $5) 13... Nh4 {[%emt 0:01:19]} 14. f4 {[%emt 0:00:20]} g6 {[%emt 0:08:45]} 15. Nef3 {[%emt 0:03:18]} Nxf3+ {[%emt 0:01:42]} 16. Rxf3 {[%emt 0:02:20]} Be7 {[%emt 0:11:10]} 17. Bd1 {[%emt 0:02:52]} Nb3 {[%emt 0:07:57]} 18. Nxb3 {[%emt 0:10:58][%cal Ob3c5]} Ba4 {[%emt 0:00:59][%cal Ra4b3][%mdl 64] [#] Pin} 19. Qd2 {[%emt 0:01:42][%cal Ob3c5] Threatens to win with Nc5!} Bxb3 {[%emt 0:00:51]} 20. Be2 {[%emt 0:00:06]} Kd7 {[%emt 0:01:16]} 21. Rh3 {[%emt 0:01:21]} Rcg8 {[%emt 0:01:38]} 22. Kh1 {[%emt 0:06:44]} (22. Bf3 $11 {is more appropriate.}) 22... Kc8 {[%emt 0:02:10]} (22... Qb5 $15) 23. Bf3 $11 {[%emt 0:00:16]} Ba4 {[%emt 0:02:34]} 24. Ra1 {[%emt 0:05:39][%cal Of4f5]} Qb3 {[%emt 0:01:27]} (24... f6 $15) 25. Rg3 {[%emt 0:04:56]} (25. f5 $5 {[%cal Rf5f6]}) 25... Qc2 {[%emt 0:01:30]} 26. Qe1 $2 {[%emt 0:02:23][%mdl 8192]} (26. Qe3 $11) 26... Bh4 $19 {[%emt 0:01:40][%mdl 64] [#] Skewer} 27. Kg1 {[%emt 0:04:29]} Bxg3 {[%emt 0:01:10]} 28. hxg3 {[%emt 0:00:52]} Qd3 {[%emt 0:02:08]} 29. Be3 {[%emt 0:00:42]} Kd7 {[%emt 0:00:52]} 30. Rc1 {[%emt 0:00:44]} Rc8 $2 {[%emt 0:00:36]} (30... g5 $19 {[%cal Oh6h5] And now ...h5! would win.} 31. Qe2 Qxe2 32. Bxe2 gxf4 33. Bxf4 b5) 31. Kf2 $11 {[%emt 0:00:36] The position is equal.} h5 {[%emt 0:03:36] Hoping for ...hxg4.} 32. Be2 {[%emt 0:00:46]} Qe4 {[%emt 0:00:18]} 33. Bf3 {[%emt 0:00:09]} Qd3 {[%emt 0:00:28] ...hxg4 would be deadly.} 34. Be2 {[%emt 0:00:08]} Qe4 {[%emt 0:00:23]} 35. Bf3 {[%emt 0:01:00] Weighted Error Value: White=0.29 (precise) /Black=0.34} 1/2-1/2

[Event "Oceania Zonal Open 2023"]
[Site "Melbourne"]
[Date "2023.01.24"]
[Round "2.11"]
[White "Leong, Benjamin"]
[Black "Dragicevic, Domagoj"]
[Result "1/2-1/2"]
[ECO "B51"]
[WhiteElo "1776"]
[BlackElo "2141"]
[Annotator "TA"]
[PlyCount "155"]
[EventDate "2023.01.09"]
[EventType "swiss"]
[EventCountry "AUS"]
[SourceTitle "playchess.com"]
[Source "ChessBase"]
[SourceQuality "1"]
[TimeControl "5400+30"]

{[%evp 12,155,16,6,10,12,11,15,20,-15,19,0,18,-101,-105,-116,-128,-190,-189,-240,-234,-297,-290,-324,-300,-425,-416,-424,-428,-431,-417,-439,-367,-375,-375,-353,-307,-413,-410,-506,-500,-542,-479,-767,-386,-382,-387,-377,-381,-379,-378,-380,-358,-457,-429,-507,-491,-531,-391,-368,-381,-372,-349,-361,-297,-317,-306,-535,-502,-573,-569,-566,-560,-710,-761,-679,-691,-652,-623,-554,-537,-526,-515,-485,-428,-407,-418,-1266,-287,-1306,-871,-1225,-1455,-1001,-409,-485,-89,-134,0,-570,0,-164,0,-404,-642,-628,-534,-606,-192,-560,-577,-495,-404,-675,-617,-803,-754,-645,-584,-1583,-1369,-1091,-1088,-970,-522,-5522,-12343,-5727,-5514,-29991,-1807,-12845,-12843,-12844,-12840,-12845,-12846,-12846,-12847,-12847,-12847,-12848,0,0,0,0]} 1. e4 {[%emt 0:01:39]} c5 {[%emt 0:00:51]} 2. Nf3 {[%emt 0:01:10]} d6 {[%emt 0:00:24]} 3. Bb5+ {[%emt 0:00:44]} Nd7 {[%emt 0:00:30]} 4. c3 {[%emt 0:00:22]} Ngf6 {[%emt 0:00:55]} 5. Qe2 {[%emt 0:00:48]} a6 {[%emt 0:01:47]} 6. Ba4 {[%emt 0:00:30]} e6 {[%emt 0:00:54]} 7. O-O {[%emt 0:02:52]} Be7 {[%emt 0:01:21] B51: Sicilian: Moscow Variation (3 Bb5+) without 3...Bd7.} 8. d4 {[%emt 0:00:22]} b5 {[%emt 0:03:02]} 9. Bc2 {[%emt 0:01:03]} Bb7 {[%emt 0:00:12]} 10. Bg5 {[%emt 0:07:35]} O-O {[%emt 0:12:12]} (10... h6 $5 {[%cal Rh6g5]} 11. Bxf6 Bxf6 $11) 11. Nbd2 {[%emt 0:00:21]} e5 {[%emt 0:14:27] [#]} 12. d5 $146 {[%emt 0:18:01] [#]} (12. a4 $11) ({Predecessor:} 12. Rfd1 Qc7 13. Nf1 h6 14. Bxf6 Bxf6 15. d5 Rfb8 16. Ne3 Bc8 17. c4 Nb6 18. Bd3 bxc4 19. Bxc4 Nxc4 20. Nxc4 {0-1 Kusluvan,Y (2131)-Sorokin,A (2179) Pavlodar op 2013 (8)}) 12... Nxd5 $1 $17 {[%emt 0:03:32][%mdl 576] Discovered Attack} 13. exd5 {[%emt 0:00:00]} (13. Bxe7 Nxe7) 13... Bxg5 {[%emt 0:00:04]} 14. Ne4 {[%emt 0:33:57]} (14. Nxg5 $17 Qxg5 15. c4) 14... Be7 $19 {[%emt 0:00:24]} 15. Ng3 {[%emt 0:00:33]} (15. c4 {was necessary.}) 15... g6 {[%emt 0:03:07]} (15... Bxd5 16. Qd3 Nf6 17. Nh5 $15) 16. Rad1 {[%emt 0:08:40]} Nb6 {[%emt 0:08:57][%cal Bd7b6,Bb6d5,Bd5f4][%mdl 32]} 17. a4 {[%emt 0:05:25]} Nxd5 {[%emt 0:06:45]} (17... Bxd5 $2 18. Nxe5 dxe5 19. a5 $17) (17... Nxa4 $2 18. Bxa4 bxa4 19. Qc2 $19) 18. Qe4 {[%emt 0:02:20]} (18. Be4 $142 Nf4 19. Qe3) 18... f5 {[%emt 0:00:55]} 19. Qe2 {[%emt 0:00:44]} Nf4 {[%emt 0:00:42]} 20. Qd2 {[%emt 0:00:24]} Qc7 {[%emt 0:04:15]} 21. Ne2 {[%emt 0:00:41] [#]} Nxg2 {[%emt 0:06:33][%mdl 512]} 22. Kxg2 {[%emt 0:00:13]} Qc6 {[%emt 0:00:05][%csl LRa4,LRf3]} 23. Neg1 {[%emt 0:02:34]} e4 {[%emt 0:00:07]} ({Weaker is} 23... bxa4 24. Qe2 $17) 24. Rfe1 {[%emt 0:00:59]} exf3+ {[%emt 0:02:06]} 25. Kh1 {[%emt 0:00:46]} Rae8 {[%emt 0:01:29]} 26. Re6 {[%emt 0:00:35]} Bg5 {[%emt 0:03:49] Prevents Qh6.} 27. Qe1 {[%emt 0:01:19]} (27. Rxg6+ $142 hxg6 28. Qxg5) 27... Bc8 {[%emt 0:00:38]} 28. Rdxd6 {[%emt 0:01:18]} Qxd6 {[%emt 0:03:45][%mdl 64] Pin} (28... Rxe6 $2 {loses.} 29. Qxe6+ Bxe6 30. Rxc6 $19) 29. Rxe8 {[%emt 0:00:09]} Bd7 {[%emt 0:10:08][%csl LRa4,LRe8]} 30. Rxf8+ {[%emt 0:01:04]} Kxf8 {[%emt 0:00:02]} 31. axb5 {[%emt 0:00:32] White is weak on the dark squares} axb5 {[%emt 0:00:07] aiming for ...Qf4.} 32. Bd1 {[%emt 0:00:21]} Bc1 {[%emt 0:01:33]} ({Not} 32... Bd2 $2 33. Qf1 $19) 33. Nxf3 {[%emt 0:04:41]} Bxb2 {[%emt 0:00:17]} 34. Kg1 {[%emt 0:02:46]} b4 {[%emt 0:01:56]} 35. cxb4 {[%emt 0:00:18]} cxb4 {[%emt 0:00:01]} 36. Bb3 {[%emt 0:00:36]} Bc3 {[%emt 0:03:16]} 37. Qe3 {[%emt 0:00:21]} Qe7 {[%emt 0:03:05] Hoping for ...Qxe3.} 38. Qb6 {[%emt 0:01:35]} Be8 {[%emt 0:00:45]} 39. Qa6 $2 {[%emt 0:00:46]} (39. h4) 39... Bf7 {[%emt 0:00:48]} 40. Bxf7 {[%emt 0:00:47]} Kxf7 {[%emt 0:00:06][%mdl 4096] Endgame KQB-KQN} 41. Qc4+ {[%emt 0:00:04]} Kg7 {[%emt 0:00:06]} 42. Kg2 {[%emt 0:00:41]} Qb7 {[%emt 0:01:12]} 43. Kg3 {[%emt 0:00:22]} Qe4 {[%emt 0:01:55]} 44. Qc7+ {[%emt 0:00:02]} Kh6 {[%emt 0:00:10][%csl Gf5][%cal Re4g4]} 45. h3 {[%emt 0:00:05] Prevents Qg4+.} Bf6 {[%emt 0:00:54]} 46. Qd6 {[%emt 0:00:55]} Qe7 {[%emt 0:00:50]} 47. Qb8 {[%emt 0:00:23]} Kg7 {[%emt 0:00:39]} 48. Kg2 {[%emt 0:00:22]} g5 {[%emt 0:00:47] Strongly threatening ...Qe4.} 49. Qb5 {[%emt 0:01:14]} (49. Nd2 $142) 49... g4 $2 {[%emt 0:00:48]} (49... Qe4 {Threatens to win with ...g4.} 50. Kg1 Qxf3 51. Qxb4 Qxh3 52. Qb7+ Kg6) 50. Ng1 $2 {[%emt 0:00:35]} (50. hxg4 fxg4 51. Nd2) 50... Qe4+ {[%emt 0:00:19]} 51. Kf1 {[%emt 0:00:55]} h5 {[%emt 0:01:43]} 52. hxg4 {[%emt 0:00:14]} hxg4 {[%emt 0:00:27]} (52... fxg4 $142 53. Ne2 h4 54. Qd7+ Kg6) 53. Ne2 {[%emt 0:00:23]} Qb1+ $2 {[%emt 0:00:41]} (53... Be5 $19 {and Black stays clearly on top.} 54. Qd7+ Kf6 55. Qd8+ Ke6 56. Qc8+ Ke7 57. Qc5+ Bd6 58. Qa7+ Ke6) 54. Kg2 $17 {[%emt 0:00:04]} Qe4+ $2 {[%emt 0:00:21][%mdl 8192]} (54... b3 $1 $17 55. Qb7+ Kh6) 55. Kf1 $1 $19 {[%emt 0:00:35]} Qb1+ $2 {[%emt 0:00:40]} (55... Be5 {...Kg6 is the strong threat.} 56. Qd7+ Kf6 57. Qd8+ Ke6 58. Qc8+ Kf7 59. Qd7+ Kf6 60. Qd8+ Ke6 61. Qc8+ Ke7 62. Qc5+ Bd6 63. Qa7+ Ke6) 56. Kg2 {[%emt 0:00:05]} Qe4+ $2 {[%emt 0:00:04]} (56... b3 $1 57. Qb7+ Kh8) 57. Kf1 $1 {[%emt 0:00:07]} Be5 {[%emt 0:00:58]} 58. Qd7+ {[%emt 0:00:12]} Kg6 {[%emt 0:00:15]} 59. Qe8+ {[%emt 0:00:12]} Kh6 $2 {[%emt 0:00:10]} (59... Kf6 {And now ...f4 would win.} 60. Qd8+ Ke6 61. Qc8+ Ke7 62. Qc5+ Bd6 63. Qa7+ Ke6 64. Qa2+ Qd5) 60. Qe6+ $2 {[%emt 0:00:59] [#]} (60. Qf7) 60... Kg5 $1 {[%emt 0:00:45]} 61. Qg8+ {[%emt 0:00:43]} Kf6 {[%emt 0:00:06]} 62. Qf8+ {[%emt 0:00:24] [#]} (62. Qe8 $142) 62... Ke6 $1 {[%emt 0:00:01]} 63. Qe8+ {[%emt 0:00:18]} Kd6 {[%emt 0:00:05]} 64. Qd8+ {[%emt 0:00:27]} Kc6 {[%emt 0:00:08] White must now prevent ...Qh1+.} 65. Qa8+ {[%emt 0:01:16]} Kb6 {[%emt 0:00:17]} 66. Qd8+ {[%emt 0:01:13]} Ka6 {[%emt 0:00:56]} 67. Qd1 {[%emt 0:00:38] Prevents b3} Ka5 {[%emt 0:00:40] ...f4 would be deadly.} 68. Qb3 {[%emt 0:00:15]} f4 {[%emt 0:01:29][%cal Bf5f4,Bf4g3][%mdl 32]} 69. Qa2+ {[%emt 0:00:50]} Kb5 {[%emt 0:00:07]} 70. Qa7 {[%emt 0:00:25]} g3 {[%emt 0:00:16]} (70... Qb1+ $142 71. Nc1 Qxc1+ 72. Ke2 f3+ 73. Kd3 Qc4+ 74. Kd2 Qe2+ 75. Kc1 Qe1+ 76. Kc2 b3+ {[%mdl 64] Decoy} 77. Kxb3 Qc3+ 78. Ka2 Qb2#) 71. fxg3 {[%emt 0:00:34]} fxg3 {[%emt 0:00:17]} 72. Qd7+ {[%emt 0:00:08]} Ka6 {[%emt 0:01:28]} 73. Qe6+ {[%emt 0:00:57]} Ka5 {[%emt 0:00:22]} 74. Qa2+ {[%emt 0:00:06]} Kb5 {[%emt 0:00:07]} 75. Qd2 {[%emt 0:00:51]} Qf3+ {[%emt 0:00:20]} 76. Ke1 {[%emt 0:00:03]} Bc3 $2 {[%emt 0:00:15]} ({Black should try} 76... Qh1+ $19 77. Ng1 Bc3 78. Kd1 Bxd2 79. Kxd2 Qxg1 80. Kd3 g2 81. Ke4 Qc5 82. Kd3 g1=Q 83. Kd2 Qh2+ 84. Ke1 Qcg1#) 77. Nd4+ $11 {[%emt 0:00:07]} Bxd4 {[%emt 0:00:14]} 78. Qd3+ $1 {[%emt 0:00:04] An exciting game.   Weighted Error Value: White=0.56/Black=0.36} 1/2-1/2